[Event "*** Titled Tuesday Blitz"]
[Site "Chess.com"]
[Date "2020.12.29"]
[Round "4"]
[White "731291"]
[Black "tylityli"]
[Result "1/2-1/2"]
[WhiteElo "2571"]
[BlackElo "2364"]
[TimeControl "180+1"]
[EndTime "10:38:15 PST"]
[Termination "Game drawn by repetition"]

1. e4 {[%clk 0:02:54.7]} 1... e5 {[%clk 0:02:59.1]} 2. Nf3 {[%clk 0:02:52.5]}
2... Nc6 {[%clk 0:02:59]} 3. Bb5 {[%clk 0:02:52.4]} 3... a6 {[%clk 0:02:58.5]}
4. Ba4 {[%clk 0:02:52.4]} 4... Nf6 {[%clk 0:02:58.2]} 5. O-O {[%clk 0:02:52.8]}
5... Be7 {[%clk 0:02:58.3]} 6. c3 {[%clk 0:02:53]} 6... b5 {[%clk 0:02:57.8]} 7.
Bc2 {[%clk 0:02:52.6]} 7... d6 {[%clk 0:02:54.2]} 8. d3 {[%clk 0:02:52.3]} 8...
O-O {[%clk 0:02:53.8]} 9. Re1 {[%clk 0:02:51.2]} 9... Nd7 {[%clk 0:02:46.2]} 10.
Nbd2 {[%clk 0:02:51]} 10... Bf6 {[%clk 0:02:45.8]} 11. Nf1 {[%clk 0:02:51.3]}
11... g6 {[%clk 0:02:45.6]} 12. Bh6 {[%clk 0:02:48.6]} 12... Bg7 {[%clk
0:02:44.8]} 13. Qd2 {[%clk 0:02:47]} 13... Bb7 {[%clk 0:02:23.7]} 14. Rad1
{[%clk 0:02:44.3]} 14... Ne7 {[%clk 0:02:12.7]} 15. d4 {[%clk 0:02:33.8]} 15...
exd4 {[%clk 0:02:06.4]} 16. Bxg7 {[%clk 0:02:19.2]} 16... Kxg7 {[%clk
0:02:04.9]} 17. Qxd4+ {[%clk 0:02:19.3]} 17... f6 {[%clk 0:02:01.4]} 18. Ng5
{[%clk 0:02:18.7]} 18... Nc5 {[%clk 0:01:23]} 19. b4 {[%clk 0:02:17]} 19... Nc6
{[%clk 0:01:22.6]} 20. Qe3 {[%clk 0:01:55.1]} 20... fxg5 {[%clk 0:01:15.6]} 21.
bxc5 {[%clk 0:01:55.1]} 21... Qf6 {[%clk 0:01:11.2]} 22. cxd6 {[%clk 0:01:50]}
22... cxd6 {[%clk 0:01:12.1]} 23. Bb3 {[%clk 0:01:31.7]} 23... Rae8 {[%clk
0:01:08.8]} 24. Bd5 {[%clk 0:01:29.8]} 24... Re7 {[%clk 0:01:06.9]} 25. Rd2
{[%clk 0:01:20.3]} 25... Ne5 {[%clk 0:01:04.1]} 26. Bxb7 {[%clk 0:01:19.3]}
26... Nc4 {[%clk 0:00:58.9]} 27. Qd4 {[%clk 0:01:03.1]} 27... Nxd2 {[%clk
0:00:52.6]} 28. Bxa6 {[%clk 0:00:55.3]} 28... Nxf1 {[%clk 0:00:50.9]} 29. Kxf1
{[%clk 0:00:54.4]} 29... Qxd4 {[%clk 0:00:41.8]} 30. cxd4 {[%clk 0:00:55.3]}
30... Ra7 {[%clk 0:00:41.5]} 31. Bxb5 {[%clk 0:00:54.6]} 31... Rxa2 {[%clk
0:00:41.4]} 32. Re2 {[%clk 0:00:54.4]} 32... Rxe2 {[%clk 0:00:39.4]} 33. Kxe2
{[%clk 0:00:55.3]} 33... Kf6 {[%clk 0:00:39.2]} 34. Bc4 {[%clk 0:00:52.5]} 34...
Rb8 {[%clk 0:00:37.7]} 35. h3 {[%clk 0:00:49.2]} 35... Rb2+ {[%clk 0:00:37.2]}
36. Ke3 {[%clk 0:00:48.5]} 36... h5 {[%clk 0:00:36.7]} 37. Bd5 {[%clk
0:00:42.7]} 37... Rc2 {[%clk 0:00:35.6]} 38. Kf3 {[%clk 0:00:40.9]} 38... Rc3+
{[%clk 0:00:35.1]} 39. Ke2 {[%clk 0:00:41.3]} 39... Rc2+ {[%clk 0:00:35.4]} 40.
Ke3 {[%clk 0:00:41.5]} 40... Rc3+ {[%clk 0:00:35.5]} 41. Ke2 {[%clk 0:00:41.7]}
41... Rc2+ {[%clk 0:00:35.6]} 42. Ke3 {[%clk 0:00:42.1]} 42... Rc3+ {[%clk
0:00:35.8]} 43. Ke2 {[%clk 0:00:42.5]} 1/2-1/2

[Event "*** Titled Tuesday Blitz"]
[Site "Chess.com"]
[Date "2020.12.29"]
[Round "4"]
[White "area_5"]
[Black "sotochess"]
[Result "0-1"]
[WhiteElo "2764"]
[BlackElo "2532"]
[TimeControl "180+1"]
[EndTime "10:38:18 PST"]
[Termination "sotochess won by resignation"]

1. c4 {[%clk 0:03:00.9]} 1... e5 {[%clk 0:02:59.2]} 2. Nc3 {[%clk 0:03:01]} 2...
Nc6 {[%clk 0:02:59.2]} 3. g3 {[%clk 0:03:01.1]} 3... Nf6 {[%clk 0:02:59]} 4. Bg2
{[%clk 0:03:00.7]} 4... Bc5 {[%clk 0:02:58.9]} 5. Nf3 {[%clk 0:03:00.3]} 5... d6
{[%clk 0:02:58.4]} 6. O-O {[%clk 0:02:59.7]} 6... O-O {[%clk 0:02:58.2]} 7. a3
{[%clk 0:02:59.5]} 7... a5 {[%clk 0:02:57.6]} 8. Rb1 {[%clk 0:02:58.8]} 8... Re8
{[%clk 0:02:50.9]} 9. d3 {[%clk 0:02:58.8]} 9... h6 {[%clk 0:02:50.4]} 10. Ne1
{[%clk 0:02:55.9]} 10... Bf5 {[%clk 0:02:47.1]} 11. Nc2 {[%clk 0:02:54.4]} 11...
e4 {[%clk 0:02:46.9]} 12. b4 {[%clk 0:02:43.2]} 12... axb4 {[%clk 0:02:44.6]}
13. axb4 {[%clk 0:02:44.1]} 13... exd3 {[%clk 0:02:35.1]} 14. exd3 {[%clk
0:02:43]} 14... Bb6 {[%clk 0:02:35]} 15. Ne3 {[%clk 0:02:31.7]} 15... Bg6 {[%clk
0:02:27.3]} 16. Ncd5 {[%clk 0:02:24.3]} 16... Bd4 {[%clk 0:02:23.2]} 17. b5
{[%clk 0:02:20.6]} 17... Na5 {[%clk 0:02:16.5]} 18. Nxf6+ {[%clk 0:02:16.7]}
18... Qxf6 {[%clk 0:02:12.9]} 19. Nd5 {[%clk 0:02:16.5]} 19... Qd8 {[%clk
0:02:12.8]} 20. b6 {[%clk 0:02:00.4]} 20... cxb6 {[%clk 0:02:09.9]} 21. Be3
{[%clk 0:01:58.8]} 21... Nc6 {[%clk 0:01:42.4]} 22. Rxb6 {[%clk 0:01:00]} 22...
Rxe3 {[%clk 0:01:33.8]} 23. Rxb7 {[%clk 0:00:53]} 23... Rxd3 {[%clk 0:01:32.8]}
24. Qe2 {[%clk 0:00:50.4]} 24... Rda3 {[%clk 0:01:09.5]} 25. Rc7 {[%clk
0:00:46.1]} 25... Ra2 {[%clk 0:00:55.3]} 26. Qg4 {[%clk 0:00:40.6]} 26... h5
{[%clk 0:00:38.2]} 27. Qd1 {[%clk 0:00:33.5]} 27... Ra1 {[%clk 0:00:35.4]} 28.
Qd2 {[%clk 0:00:29.7]} 28... R8a2 {[%clk 0:00:31.7]} 29. Qf4 {[%clk 0:00:19.7]}
29... Rxf1+ {[%clk 0:00:31.4]} 30. Bxf1 {[%clk 0:00:19.9]} 30... Rxf2 {[%clk
0:00:31.4]} 31. Ne7+ {[%clk 0:00:20]} 31... Qxe7 {[%clk 0:00:29.4]} 32. Rc8+
{[%clk 0:00:15.9]} 32... Kh7 {[%clk 0:00:28.7]} 0-1

[Event "*** Titled Tuesday Blitz"]
[Site "Chess.com"]
[Date "2020.12.29"]
[Round "4"]
[White "MacDaddyMac"]
[Black "BikingBrian"]
[Result "1-0"]
[WhiteElo "2490"]
[BlackElo "2265"]
[TimeControl "180+1"]
[EndTime "10:38:18 PST"]
[Termination "MacDaddyMac won by resignation"]

1. e4 {[%clk 0:03:00.9]} 1... c5 {[%clk 0:02:57.2]} 2. Nc3 {[%clk 0:03:00.5]}
2... Nc6 {[%clk 0:02:55.8]} 3. f4 {[%clk 0:03:00.7]} 3... g6 {[%clk 0:02:56.1]}
4. Nf3 {[%clk 0:03:01.3]} 4... Bg7 {[%clk 0:02:56.5]} 5. Bb5 {[%clk 0:03:02]}
5... Nd4 {[%clk 0:02:56.7]} 6. O-O {[%clk 0:03:01.8]} 6... Nxb5 {[%clk
0:02:55.7]} 7. Nxb5 {[%clk 0:03:02.7]} 7... d5 {[%clk 0:02:51.7]} 8. e5 {[%clk
0:03:03.2]} 8... d4 {[%clk 0:02:50.9]} 9. c3 {[%clk 0:03:01.3]} 9... a6 {[%clk
0:02:31.2]} 10. Na3 {[%clk 0:02:59.9]} 10... d3 {[%clk 0:02:30.9]} 11. Ne1
{[%clk 0:02:36.6]} 11... Nh6 {[%clk 0:02:00.7]} 12. Qf3 {[%clk 0:02:34.4]} 12...
Bg4 {[%clk 0:01:39.6]} 13. Qxb7 {[%clk 0:02:29.1]} 13... O-O {[%clk 0:01:24.4]}
14. h3 {[%clk 0:02:23.6]} 14... Be2 {[%clk 0:01:24.3]} 15. Rf2 {[%clk
0:02:23.9]} 15... f6 {[%clk 0:01:03.9]} 16. e6 {[%clk 0:02:13]} 16... Qd6 {[%clk
0:00:57.4]} 17. Qe4 {[%clk 0:02:09.5]} 17... f5 {[%clk 0:00:53.1]} 18. Qe3
{[%clk 0:02:09.2]} 18... Rf6 {[%clk 0:00:45.4]} 19. Nc4 {[%clk 0:01:58.6]} 19...
Qxe6 {[%clk 0:00:45.2]} 20. Ne5 {[%clk 0:01:45.5]} 20... Rd8 {[%clk 0:00:42.4]}
21. Qxc5 {[%clk 0:01:41.3]} 21... Rff8 {[%clk 0:00:39.2]} 22. Qc4 {[%clk
0:01:37.8]} 22... Qxc4 {[%clk 0:00:37.8]} 23. Nxc4 {[%clk 0:01:38.7]} 23... Nf7
{[%clk 0:00:36.4]} 24. b3 {[%clk 0:01:32.4]} 24... e5 {[%clk 0:00:36.5]} 25.
fxe5 {[%clk 0:01:31]} 25... Nxe5 {[%clk 0:00:36.8]} 26. Nxe5 {[%clk 0:01:31.5]}
26... Bxe5 {[%clk 0:00:36.6]} 27. Bb2 {[%clk 0:01:31.9]} 27... Bg3 {[%clk
0:00:32.4]} 28. c4 {[%clk 0:01:28.6]} 28... Bxf2+ {[%clk 0:00:30.4]} 29. Kxf2
{[%clk 0:01:29.5]} 29... Rfe8 {[%clk 0:00:30.1]} 30. Bf6 {[%clk 0:01:22.3]}
30... Rd6 {[%clk 0:00:27.8]} 31. Bg5 {[%clk 0:01:22.1]} 31... Kg7 {[%clk
0:00:25]} 32. h4 {[%clk 0:01:19.6]} 32... h6 {[%clk 0:00:25.3]} 33. Bf4 {[%clk
0:01:19.7]} 33... Rd4 {[%clk 0:00:24]} 34. g3 {[%clk 0:01:19.9]} 34... Kf6
{[%clk 0:00:23.4]} 35. Bxh6 {[%clk 0:01:19.1]} 35... f4 {[%clk 0:00:16.7]} 36.
Bxf4 {[%clk 0:01:14.2]} 36... Rxf4+ {[%clk 0:00:16.3]} 37. gxf4 {[%clk
0:01:15.1]} 37... Rh8 {[%clk 0:00:15.5]} 38. Ng2 {[%clk 0:01:14.2]} 38... Kf5
{[%clk 0:00:14.4]} 39. Kg3 {[%clk 0:01:14.4]} 39... Re8 {[%clk 0:00:13]} 40. Rc1
{[%clk 0:01:06.6]} 40... Bh5 {[%clk 0:00:11.3]} 41. c5 {[%clk 0:01:06.2]} 41...
Re2 {[%clk 0:00:09.3]} 42. c6 {[%clk 0:01:05.4]} 42... Rxd2 {[%clk 0:00:09.8]}
43. c7 {[%clk 0:01:03.9]} 43... Rc2 {[%clk 0:00:07.3]} 44. c8=Q+ {[%clk
0:01:04.8]} 44... Rxc8 {[%clk 0:00:06.7]} 45. Rxc8 {[%clk 0:01:05.7]} 45... d2
{[%clk 0:00:06.4]} 46. Rd8 {[%clk 0:01:04.5]} 46... d1=Q {[%clk 0:00:05.6]} 47.
Ne3+ {[%clk 0:01:04.4]} 47... Ke4 {[%clk 0:00:04.7]} 48. Nxd1 {[%clk 0:01:05.3]}
48... Bxd1 {[%clk 0:00:04.7]} 49. Rxd1 {[%clk 0:01:05.6]} 1-0

[Event "*** Titled Tuesday Blitz"]
[Site "Chess.com"]
[Date "2020.12.29"]
[Round "4"]
[White "rasmussvane"]
[Black "Anna_ChessMate"]
[Result "1/2-1/2"]
[WhiteElo "2874"]
[BlackElo "2559"]
[TimeControl "180+1"]
[EndTime "10:38:19 PST"]
[Termination "Game drawn by repetition"]

1. Nf3 {[%clk 0:03:00.9]} 1... d5 {[%clk 0:02:54.7]} 2. g3 {[%clk 0:03:01.1]}
2... Nf6 {[%clk 0:02:52.3]} 3. Bg2 {[%clk 0:03:00.2]} 3... g6 {[%clk 0:02:53.2]}
4. c4 {[%clk 0:02:59.8]} 4... c6 {[%clk 0:02:52.3]} 5. b3 {[%clk 0:03:00.1]}
5... Bg7 {[%clk 0:02:50.4]} 6. Bb2 {[%clk 0:03:00.6]} 6... O-O {[%clk
0:02:51.1]} 7. O-O {[%clk 0:03:01.1]} 7... Re8 {[%clk 0:02:44.7]} 8. d4 {[%clk
0:02:59.2]} 8... Nbd7 {[%clk 0:02:44.2]} 9. Nc3 {[%clk 0:02:58.9]} 9... e6
{[%clk 0:02:37]} 10. Nd2 {[%clk 0:02:57.9]} 10... b6 {[%clk 0:02:35.5]} 11. e4
{[%clk 0:02:58]} 11... dxe4 {[%clk 0:02:35.1]} 12. Ndxe4 {[%clk 0:02:58.9]}
12... Nxe4 {[%clk 0:02:35.3]} 13. Nxe4 {[%clk 0:02:59.8]} 13... Qc7 {[%clk
0:02:33.4]} 14. Qc2 {[%clk 0:02:53.2]} 14... Bb7 {[%clk 0:02:32.9]} 15. Rad1
{[%clk 0:02:53.1]} 15... Rad8 {[%clk 0:02:32.1]} 16. Rfe1 {[%clk 0:02:52.6]}
16... e5 {[%clk 0:02:16.5]} 17. dxe5 {[%clk 0:02:37.6]} 17... Nxe5 {[%clk
0:02:12]} 18. Rxd8 {[%clk 0:02:35.8]} 18... Rxd8 {[%clk 0:02:12.9]} 19. Qe2
{[%clk 0:00:49]} 19... c5 {[%clk 0:01:58.8]} 20. f4 {[%clk 0:00:49.2]} 20... Nd3
{[%clk 0:01:42.2]} 21. Bxg7 {[%clk 0:00:48.7]} 21... Kxg7 {[%clk 0:01:31.3]} 22.
Rd1 {[%clk 0:00:47.7]} 22... Bxe4 {[%clk 0:01:28.6]} 23. Bxe4 {[%clk 0:00:42.8]}
23... Nb4 {[%clk 0:01:28.2]} 24. a3 {[%clk 0:00:39.4]} 24... Rxd1+ {[%clk
0:01:23.5]} 25. Qxd1 {[%clk 0:00:40.3]} 25... Nc6 {[%clk 0:01:22.3]} 26. Qd5
{[%clk 0:00:33.1]} 26... Nd4 {[%clk 0:01:21.3]} 27. b4 {[%clk 0:00:33.5]} 27...
h5 {[%clk 0:01:19.5]} 28. Kf2 {[%clk 0:00:33.4]} 28... Qe7 {[%clk 0:01:18.1]}
29. Qe5+ {[%clk 0:00:28.1]} 29... Qxe5 {[%clk 0:01:17.2]} 30. fxe5 {[%clk
0:00:29]} 30... Kf8 {[%clk 0:01:17.6]} 31. Ke3 {[%clk 0:00:28.5]} 31... Ke7
{[%clk 0:01:17.7]} 32. Kf4 {[%clk 0:00:18.9]} 32... Ne6+ {[%clk 0:01:16]} 33.
Ke3 {[%clk 0:00:18.8]} 33... Nd4 {[%clk 0:01:14.7]} 34. b5 {[%clk 0:00:09]}
34... g5 {[%clk 0:01:08.9]} 35. a4 {[%clk 0:00:08.6]} 35... Ke6 {[%clk
0:01:06.5]} 36. Bd5+ {[%clk 0:00:08.6]} 36... Kxe5 {[%clk 0:01:07.1]} 37. Bxf7
{[%clk 0:00:09]} 37... h4 {[%clk 0:01:07.4]} 38. gxh4 {[%clk 0:00:09.4]} 38...
gxh4 {[%clk 0:01:08.1]} 39. Bd5 {[%clk 0:00:08.7]} 39... Kf5 {[%clk 0:01:08.3]}
40. Bb7 {[%clk 0:00:05.1]} 40... Ke5 {[%clk 0:01:07.9]} 41. Bd5 {[%clk
0:00:04.9]} 41... Kf5 {[%clk 0:01:07.9]} 42. Bb7 {[%clk 0:00:05.2]} 42... Ke5
{[%clk 0:01:08.2]} 43. Bd5 {[%clk 0:00:05.4]} 1/2-1/2

[Event "*** Titled Tuesday Blitz"]
[Site "Chess.com"]
[Date "2020.12.29"]
[Round "4"]
[White "Parhamov"]
[Black "PabloZarnicki"]
[Result "1-0"]
[WhiteElo "2942"]
[BlackElo "2562"]
[TimeControl "180+1"]
[EndTime "10:38:20 PST"]
[Termination "Parhamov won on time"]

1. d4 {[%clk 0:03:00.9]} 1... Nf6 {[%clk 0:02:58.7]} 2. c4 {[%clk 0:03:00.3]}
2... e6 {[%clk 0:02:58.8]} 3. g3 {[%clk 0:03:00.2]} 3... d5 {[%clk 0:02:58.2]}
4. Bg2 {[%clk 0:03:00.1]} 4... Be7 {[%clk 0:02:58.9]} 5. Nf3 {[%clk 0:02:59.2]}
5... O-O {[%clk 0:02:59.5]} 6. O-O {[%clk 0:02:59.2]} 6... dxc4 {[%clk 0:03:00]}
7. a4 {[%clk 0:02:59.6]} 7... c5 {[%clk 0:02:52.4]} 8. dxc5 {[%clk 0:02:51.8]}
8... Bxc5 {[%clk 0:02:51.5]} 9. Nbd2 {[%clk 0:02:50.7]} 9... c3 {[%clk
0:02:49.5]} 10. bxc3 {[%clk 0:02:49.5]} 10... Nc6 {[%clk 0:02:49.3]} 11. Nb3
{[%clk 0:02:47.7]} 11... Be7 {[%clk 0:02:42.9]} 12. Nfd4 {[%clk 0:02:43.1]}
12... Bd7 {[%clk 0:02:40.8]} 13. a5 {[%clk 0:02:42.3]} 13... Nxd4 {[%clk
0:02:35]} 14. cxd4 {[%clk 0:02:40.7]} 14... Bc6 {[%clk 0:02:35.3]} 15. Bxc6
{[%clk 0:02:39.9]} 15... bxc6 {[%clk 0:02:36.2]} 16. Ba3 {[%clk 0:02:28.6]}
16... Rb8 {[%clk 0:02:31.2]} 17. Qc2 {[%clk 0:02:20.1]} 17... Bxa3 {[%clk
0:02:27.4]} 18. Rxa3 {[%clk 0:02:20.2]} 18... Qd6 {[%clk 0:02:28.3]} 19. Ra4
{[%clk 0:02:19.5]} 19... e5 {[%clk 0:02:22.8]} 20. dxe5 {[%clk 0:02:13.6]} 20...
Qxe5 {[%clk 0:02:23.7]} 21. Nd4 {[%clk 0:02:11.5]} 21... Rfc8 {[%clk 0:01:33.9]}
22. Nxc6 {[%clk 0:02:10.4]} 22... Qe6 {[%clk 0:01:32.4]} 23. Rc4 {[%clk
0:02:08.2]} 23... Kh8 {[%clk 0:01:17.5]} 24. Rc1 {[%clk 0:02:07.9]} 24... Rb7
{[%clk 0:01:14.4]} 25. Nd4 {[%clk 0:01:50]} 25... Qxc4 {[%clk 0:01:14]} 26. Qxc4
{[%clk 0:01:50.9]} 26... Rxc4 {[%clk 0:01:14.4]} 27. Rxc4 {[%clk 0:01:51.6]}
27... g6 {[%clk 0:01:15.2]} 28. a6 {[%clk 0:01:39.8]} 28... Rd7 {[%clk
0:00:58.9]} 29. Nb5 {[%clk 0:01:39.1]} 29... Kg7 {[%clk 0:00:55.7]} 30. e4
{[%clk 0:01:33.1]} 30... Rd1+ {[%clk 0:00:52.3]} 31. Kg2 {[%clk 0:01:33.1]}
31... Ra1 {[%clk 0:00:53.1]} 32. Rc6 {[%clk 0:01:12.9]} 32... Nxe4 {[%clk
0:00:50.7]} 33. Nxa7 {[%clk 0:01:13.4]} 33... Ra2 {[%clk 0:00:51]} 34. Nb5
{[%clk 0:01:13.7]} 34... Rxf2+ {[%clk 0:00:50.2]} 35. Kg1 {[%clk 0:01:14.1]}
35... Ra2 {[%clk 0:00:48.8]} 36. a7 {[%clk 0:01:14.4]} 36... Ng5 {[%clk
0:00:48.6]} 37. Rc3 {[%clk 0:01:13]} 37... Ne6 {[%clk 0:00:31.4]} 38. Rc8 {[%clk
0:01:11.9]} 38... Ra1+ {[%clk 0:00:22.9]} 39. Kf2 {[%clk 0:01:08.2]} 39... Ra2+
{[%clk 0:00:23.8]} 40. Ke1 {[%clk 0:01:07.5]} 1-0

[Event "*** Titled Tuesday Blitz"]
[Site "Chess.com"]
[Date "2020.12.29"]
[Round "4"]
[White "VladimirBugayev"]
[Black "HouseOfDurin"]
[Result "1-0"]
[WhiteElo "2288"]
[BlackElo "2091"]
[TimeControl "180+1"]
[EndTime "10:38:20 PST"]
[Termination "VladimirBugayev won on time"]

1. e4 {[%clk 0:03:00.9]} 1... c5 {[%clk 0:02:58.8]} 2. a3 {[%clk 0:03:00.2]}
2... a5 {[%clk 0:02:57.6]} 3. Nc3 {[%clk 0:02:59.3]} 3... Nc6 {[%clk 0:02:58]}
4. Bc4 {[%clk 0:02:55.3]} 4... e5 {[%clk 0:02:56.7]} 5. d3 {[%clk 0:02:55.4]}
5... g6 {[%clk 0:02:53.8]} 6. Nge2 {[%clk 0:02:52]} 6... Bg7 {[%clk 0:02:52.7]}
7. h4 {[%clk 0:02:48.9]} 7... h6 {[%clk 0:02:51.3]} 8. h5 {[%clk 0:02:45.4]}
8... g5 {[%clk 0:02:50.8]} 9. Ng3 {[%clk 0:02:45]} 9... Nge7 {[%clk 0:02:49.7]}
10. Nf1 {[%clk 0:02:38.3]} 10... d6 {[%clk 0:02:41.5]} 11. g4 {[%clk 0:02:36.5]}
11... Be6 {[%clk 0:02:35.7]} 12. Ne3 {[%clk 0:02:35.4]} 12... Bxc4 {[%clk
0:02:20.7]} 13. dxc4 {[%clk 0:02:29.5]} 13... O-O {[%clk 0:02:14.6]} 14. Ncd5
{[%clk 0:02:27.9]} 14... Nxd5 {[%clk 0:02:07.3]} 15. cxd5 {[%clk 0:02:27.2]}
15... Nd4 {[%clk 0:01:47.3]} 16. a4 {[%clk 0:02:00]} 16... Qf6 {[%clk
0:01:29.7]} 17. Rh3 {[%clk 0:01:48.5]} 17... c4 {[%clk 0:00:54.2]} 18. Nxc4
{[%clk 0:01:18.1]} 18... Rfc8 {[%clk 0:00:43.1]} 19. b3 {[%clk 0:01:17.8]} 19...
b5 {[%clk 0:00:38.8]} 20. axb5 {[%clk 0:01:15.2]} 20... Nxb5 {[%clk 0:00:38]}
21. Nb6 {[%clk 0:01:08.4]} 21... Rc3 {[%clk 0:00:26.1]} 22. Rxc3 {[%clk
0:01:01.5]} 22... Nxc3 {[%clk 0:00:27]} 23. Qd3 {[%clk 0:00:55.7]} 23... Rb8
{[%clk 0:00:18.5]} 24. Nd7 {[%clk 0:00:54.3]} 24... Qd8 {[%clk 0:00:08.8]} 25.
Nxb8 {[%clk 0:00:53.7]} 25... Qxb8 {[%clk 0:00:05]} 26. Qxc3 {[%clk 0:00:53.4]}
26... Qb6 {[%clk 0:00:03.8]} 27. Be3 {[%clk 0:00:51.4]} 27... Qd8 {[%clk
0:00:02.7]} 28. Qxa5 {[%clk 0:00:50.2]} 28... Qf6 {[%clk 0:00:02.9]} 29. Ke2
{[%clk 0:00:34.2]} 29... Qe7 {[%clk 0:00:01.3]} 30. Qa8+ {[%clk 0:00:32.9]} 1-0

[Event "*** Titled Tuesday Blitz"]
[Site "Chess.com"]
[Date "2020.12.29"]
[Round "4"]
[White "peixe64"]
[Black "rududuyk"]
[Result "1-0"]
[WhiteElo "2450"]
[BlackElo "2281"]
[TimeControl "180+1"]
[EndTime "10:38:24 PST"]
[Termination "peixe64 won by resignation"]

1. e4 {[%clk 0:03:00.9]} 1... e6 {[%clk 0:02:59.9]} 2. d4 {[%clk 0:03:01.2]}
2... d5 {[%clk 0:03:00.4]} 3. Nc3 {[%clk 0:03:01.7]} 3... Bb4 {[%clk 0:02:59.9]}
4. e5 {[%clk 0:03:01.7]} 4... c5 {[%clk 0:03:00.2]} 5. a3 {[%clk 0:03:01.6]}
5... Bxc3+ {[%clk 0:03:00.7]} 6. bxc3 {[%clk 0:03:02.5]} 6... Ne7 {[%clk
0:03:00.7]} 7. Nf3 {[%clk 0:03:02]} 7... b6 {[%clk 0:02:53.2]} 8. a4 {[%clk
0:03:00.5]} 8... Ba6 {[%clk 0:02:50.9]} 9. Bd3 {[%clk 0:02:46.8]} 9... Bxd3
{[%clk 0:02:15.7]} 10. cxd3 {[%clk 0:02:46.6]} 10... Nbc6 {[%clk 0:02:11.4]} 11.
dxc5 {[%clk 0:02:43.8]} 11... bxc5 {[%clk 0:02:10.6]} 12. O-O {[%clk 0:02:40.5]}
12... O-O {[%clk 0:02:07.2]} 13. d4 {[%clk 0:02:31.1]} 13... Qa5 {[%clk
0:01:59.5]} 14. Ba3 {[%clk 0:02:27.1]} 14... cxd4 {[%clk 0:01:52.8]} 15. cxd4
{[%clk 0:02:26.1]} 15... Rfc8 {[%clk 0:01:49.2]} 16. Rb1 {[%clk 0:02:18.5]}
16... Qc3 {[%clk 0:01:29.1]} 17. Bc5 {[%clk 0:02:06.9]} 17... Nf5 {[%clk
0:01:26.4]} 18. Rb3 {[%clk 0:01:42.3]} 18... Qa5 {[%clk 0:01:25.8]} 19. Rb5
{[%clk 0:01:40.9]} 19... Qc3 {[%clk 0:01:18.8]} 20. g4 {[%clk 0:01:32.4]} 20...
Nfe7 {[%clk 0:01:08.5]} 21. Re1 {[%clk 0:01:23.1]} 21... Ng6 {[%clk 0:00:58.5]}
22. Re3 {[%clk 0:01:21.7]} 22... Qc4 {[%clk 0:00:58.4]} 23. Nd2 {[%clk
0:01:14.8]} 23... Qa2 {[%clk 0:00:53.3]} 24. Ra3 {[%clk 0:01:10.1]} 24... Qxa3
{[%clk 0:00:41.3]} 25. Bxa3 {[%clk 0:01:09.7]} 25... Nxd4 {[%clk 0:00:41.8]} 26.
Rb7 {[%clk 0:01:03.9]} 26... Nxe5 {[%clk 0:00:38.2]} 27. Bb2 {[%clk 0:00:59.5]}
27... Ndc6 {[%clk 0:00:34.8]} 28. Qe2 {[%clk 0:00:55.7]} 28... f6 {[%clk
0:00:32]} 29. f4 {[%clk 0:00:53.5]} 29... Na5 {[%clk 0:00:27.7]} 30. Rb5 {[%clk
0:00:47.5]} 30... Nac4 {[%clk 0:00:21.1]} 31. fxe5 {[%clk 0:00:45.2]} 31... Nxb2
{[%clk 0:00:19.4]} 32. Rxb2 {[%clk 0:00:44.2]} 32... Rc1+ {[%clk 0:00:19.9]} 33.
Kg2 {[%clk 0:00:44.2]} 33... Rf8 {[%clk 0:00:16.2]} 34. exf6 {[%clk 0:00:43.4]}
34... Rxf6 {[%clk 0:00:16.1]} 35. Rb8+ {[%clk 0:00:43.9]} 35... Kf7 {[%clk
0:00:16.1]} 36. Nf3 {[%clk 0:00:44.3]} 36... Ke7 {[%clk 0:00:02.8]} 37. Rb7+
{[%clk 0:00:44.2]} 1-0

[Event "*** Titled Tuesday Blitz"]
[Site "Chess.com"]
[Date "2020.12.29"]
[Round "4"]
[White "ODreamchess"]
[Black "kirillshevchenko"]
[Result "1/2-1/2"]
[WhiteElo "2692"]
[BlackElo "2873"]
[TimeControl "180+1"]
[EndTime "10:38:25 PST"]
[Termination "Game drawn by agreement"]

1. d4 {[%clk 0:03:00.9]} 1... Nf6 {[%clk 0:02:58.1]} 2. Nf3 {[%clk 0:03:00.9]}
2... d6 {[%clk 0:02:57.4]} 3. Nc3 {[%clk 0:03:00.6]} 3... Bf5 {[%clk 0:02:56.9]}
4. Bg5 {[%clk 0:02:59.6]} 4... Nbd7 {[%clk 0:02:53.5]} 5. e3 {[%clk 0:02:53.8]}
5... h6 {[%clk 0:02:48]} 6. Bh4 {[%clk 0:02:53.3]} 6... e5 {[%clk 0:02:26.6]} 7.
dxe5 {[%clk 0:02:51.2]} 7... dxe5 {[%clk 0:02:25.6]} 8. Bd3 {[%clk 0:02:50.6]}
8... Bxd3 {[%clk 0:02:04.1]} 9. Qxd3 {[%clk 0:02:47.7]} 9... Bd6 {[%clk
0:02:02.2]} 10. O-O-O {[%clk 0:02:42.2]} 10... g5 {[%clk 0:01:33.1]} 11. Bg3
{[%clk 0:02:39.3]} 11... Qe7 {[%clk 0:01:27.9]} 12. Qf5 {[%clk 0:02:36.5]} 12...
Qe6 {[%clk 0:01:23]} 13. Qxe6+ {[%clk 0:02:32]} 13... fxe6 {[%clk 0:01:23.2]}
14. Nd2 {[%clk 0:02:32.1]} 14... Ke7 {[%clk 0:01:07.3]} 15. Nde4 {[%clk
0:02:30.8]} 15... Nxe4 {[%clk 0:00:46.9]} 16. Nxe4 {[%clk 0:02:30.4]} 16... Raf8
{[%clk 0:00:44.8]} 17. f3 {[%clk 0:02:29.6]} 17... Nf6 {[%clk 0:00:39.6]} 18.
Nxf6 {[%clk 0:02:28.9]} 18... Rxf6 {[%clk 0:00:40.2]} 19. h3 {[%clk 0:02:27.3]}
19... h5 {[%clk 0:00:40.3]} 20. e4 {[%clk 0:02:26.3]} 20... Rg8 {[%clk
0:00:36.4]} 21. Kd2 {[%clk 0:02:25.4]} 21... Rf7 {[%clk 0:00:29.8]} 22. Ke2
{[%clk 0:02:25.1]} 22... a6 {[%clk 0:00:28.7]} 23. c4 {[%clk 0:02:21.8]} 23...
b5 {[%clk 0:00:27.4]} 24. c5 {[%clk 0:02:17.4]} 24... Bxc5 {[%clk 0:00:27.3]}
25. Bxe5 {[%clk 0:02:17.5]} 25... Bd6 {[%clk 0:00:25]} 26. Bd4 {[%clk
0:02:17.6]} 26... g4 {[%clk 0:00:22.1]} 27. hxg4 {[%clk 0:02:09.8]} 27... hxg4
{[%clk 0:00:21.9]} 28. e5 {[%clk 0:02:10]} 28... gxf3+ {[%clk 0:00:16.2]} 29.
gxf3 {[%clk 0:02:10.9]} 29... Bb4 {[%clk 0:00:16.4]} 30. a3 {[%clk 0:02:10.8]}
30... Ba5 {[%clk 0:00:15.7]} 31. Bc5+ {[%clk 0:02:10.9]} 31... Ke8 {[%clk
0:00:15.9]} 32. Rdg1 {[%clk 0:02:08.2]} 32... Rxg1 {[%clk 0:00:13.2]} 33. Rxg1
{[%clk 0:02:08.7]} 33... Rf5 {[%clk 0:00:07.7]} 34. Kd3 {[%clk 0:01:16.7]} 34...
Rxe5 {[%clk 0:00:06.7]} 35. b4 {[%clk 0:01:13]} 35... Bb6 {[%clk 0:00:06.7]} 36.
Bxb6 {[%clk 0:01:08.3]} 36... cxb6 {[%clk 0:00:07.6]} 37. Rg7 {[%clk 0:01:08.6]}
37... Re1 {[%clk 0:00:05.3]} 38. Ra7 {[%clk 0:01:04]} 38... Kd8 {[%clk
0:00:03.3]} 39. Kd4 {[%clk 0:00:52.6]} 1/2-1/2